bitfinex-derivatives/quotes_SOLF0:USTF0_20241216
["timestamp","ask_amount","ask_price","bid_price","bid_amount"]
[1734392315648,6.48921167,216.35,216.3,5.62372857]
[1734392316251,6.48921167,216.35,216.33,2.3104]
[1734392316649,6.48921167,216.35,216.3,5.62372857]
[1734392317250,6.48921167,216.35,216.33,2.3104]
[1734392317948,6.48921167,216.35,216.3,5.62372857]
[1734392318143,6.48921167,216.35,216.34,2.3104]
[1734392318851,6.48921167,216.35,216.13,4.6251]
[1734392319045,6.48921167,216.31,216.23,6.48921167]
[1734392319250,2.44,216.38,216.23,6.48921167]
[1734392319251,6.48921167,216.29,216.23,6.48921167]
[1734392319545,6.48921167,216.29,216.27,2.311]
[1734392322746,6.48921167,216.29,216.21,9.70151167]
[1734392322948,6.48921167,216.27,216.21,3.2123]
[1734392323147,6.48921167,216.27,216.23,2.3115]
[1734392326946,6.48921167,216.29,216.25,2.3113]
[1734392329862,6.48921167,216.32,216.25,6.48921167]
[1734392330457,6.48921167,216.32,216.28,2.3109]
[1734392333464,6.48921167,216.3,216.27,2.3111]
[1734392334062,6.48921167,216.3,216.28,2.311]
[1734392334759,6.48921167,216.32,216.28,2.311]
[1734392337562,6.48921167,216.32,216.25,6.48921167]
[1734392337959,6.48921167,216.3,216.23,6.48921167]
[1734392338162,6.48921167,216.3,216.26,2.3112]
[1734392340963,6.48921167,216.3,216.23,6.48921167]
[1734392340964,8.80001167,216.3,216.25,2.3113]
[1734392341769,2.3109,216.3,216.25,2.3113]
[1734392341968,6.48921167,216.29,216.25,2.3113]
[1734392342573,6.48921167,216.27,216.24,2.3114]
[1734392342773,6.48921167,216.25,216.21,3.2123]
[1734392343871,6.48921167,216.25,216.22,2.3117]
[1734392345273,6.48921167,216.25,216.21,2.3118]
[1734392345776,6.48921167,216.25,216.14,4.7002]
[1734392345979,8.80091167,216.22,216.15,6.48921167]
[1734392346179,6.48921167,216.22,216.15,6.48921167]
[1734392346878,6.48921167,216.22,216.18,2.312]
[1734392347880,6.48921167,216.19,216.11,2.3128]
[1734392348075,1.6063,216.31,216.07,6.48921167]
[1734392348076,6.48921167,216.14,216.07,6.48921167]
[1734392349280,6.48921167,216.14,216.12,2.3127]
[1734392349679,8.86921167,216.16,216.12,2.3127]
[1734392350478,2.4,216.15,215.93,4.6294]
[1734392350679,2.4,216.14,216.08,6.48921167]
[1734392351180,2.4,216.14,216.09,2.313]
[1734392351579,2.4,216.14,216.07,6.48921167]
[1734392352083,6.48921167,216.13,216.07,6.48921167]
[1734392352482,8.80191167,216.13,216.07,8.80241167]
[1734392353076,4.7126,216.14,216.09,2.313]
[1734392353379,4.7126,216.14,216.1,6.48921167]
[1734392353380,2.4,216.14,216.1,6.48921167]
[1734392353981,2.4,216.14,216.11,2.3128]
[1734392354380,2.4,216.14,216.09,6.48921167]
[1734392354686,2.4,216.14,216.1,2.3129]
[1734392355586,2.4,216.14,216.11,6.48921167]
[1734392356385,2.4,216.14,216.11,8.80201167]
[1734392357283,2.4,216.14,216.11,6.48921167]
[1734392357681,2.4,216.14,216.09,6.48921167]
[1734392357880,2.4,216.14,216.11,6.48921167]
[1734392358086,2.4,216.14,216.11,2.3128]
[1734392358296,2.4,216.14,216.09,6.48921167]
[1734392358886,2.4,216.14,216.1,2.3128]
[1734392359197,2.4,216.14,216.09,6.48921167]
[1734392359491,2.4,216.14,216.11,2.3128]
[1734392359690,2.4,216.15,216.13,6.48921167]
[1734392360286,6.48921167,216.19,216.13,6.48921167]
[1734392360583,2.4,216.18,216.13,6.48921167]
[1734392360982,4.7121,216.18,216.14,2.3125]
[1734392363793,6.48921167,216.19,216.13,8.80181167]
[1734392363986,6.48921167,216.17,216.06,2.4]
[1734392364191,2.4,216.16,216.11,6.48921167]
[1734392364894,4.7123,216.16,216.12,2.3126]
[1734392368094,2.3124,216.15,216.11,8.80201167]
[1734392372199,2.3124,216.15,216.11,6.48921167]
[1734392372394,6.48921167,216.13,216.05,5.60535329]
[1734392372697,6.48921167,216.13,216.07,6.48921167]
[1734392373394,2.3128,216.12,216.08,2.3131]
[1734392374693,6.48921167,216.13,216.09,6.48921167]
[1734392374694,2.3127,216.13,216.09,6.48921167]
[1734392377094,6.48921167,216.16,216.11,6.48921167]
[1734392377291,2.36,216.14,216.11,6.48921167]
[1734392377893,2.36,216.14,216.1,2.3129]
[1734392379396,2.3125,216.15,216.09,6.48921167]
[1734392379597,2.36,216.14,216.11,8.80201167]
[1734392379994,2.36,216.14,216.05,5.68301822]
[1734392380197,2.36,216.14,216.1,2.3129]
[1734392380991,2.3124,216.15,216.11,6.48921167]
[1734392381194,2.36,216.14,216.11,8.80201167]
[1734392382599,4.6724,216.15,216.11,8.80201167]
[1734392383196,4.6724,216.15,216.11,6.48921167]
[1734392386999,2.3125,216.14,216.1,2.3129]
[1734392387899,4.6725,216.14,216.09,6.48921167]
[1734392388105,2.36,216.14,216.08,2.3131]
[1734392388307,6.48921167,216.13,216.08,2.3131]
[1734392389609,2.3128,216.12,216.08,2.3131]
[1734392393606,2.313,216.1,216.06,8.80251167]
[1734392393808,6.48921167,216.12,216.06,8.80251167]
[1734392394307,2.3129,216.11,216.06,8.80251167]
[1734392397802,2.3129,216.11,216.06,2.3133]
[1734392398204,2.3129,216.11,216.06,8.80251167]
[1734392399511,2.3129,216.11,216.06,6.48921167]
[1734392399712,2.3129,216.11,216.07,2.3133]
[1734392400610,8.80201167,216.12,216.07,2.3133]
[1734392401007,6.48921167,216.12,216.07,2.3133]
[1734392403519,8.80201167,216.12,216.07,2.3133]
[1734392407923,5.48366278,216.18,216.07,6.48921167]
[1734392408122,8.80161167,216.15,216.1,2.3129]
[1734392408323,8.80161167,216.15,216.09,6.48921167]
[1734392408619,2.3124,216.15,216.11,2.3128]
[1734392408826,2.3,216.14,216.11,2.3128]
[1734392409021,2.3,216.14,216.09,6.48921167]
[1734392409217,5.48366278,216.18,216.11,6.48921167]
[1734392409417,5.48366278,216.18,216.04,5.3086]
[1734392409418,2.3,216.19,216.13,6.48921167]
[1734392409623,2.3,216.18,216.13,6.48921167]
[1734392409925,2.312,216.19,216.15,2.3123]
[1734392410222,6.48921167,216.18,216.15,2.3123]
[1734392412028,6.48921167,216.18,216.14,2.3125]
[1734392413029,2.312,216.19,216.14,2.3125]
[1734392413231,6.48921167,216.17,216.14,2.3125]
[1734392413524,6.48921167,216.17,216.13,2.3126]
[1734392414327,2.3,216.2,216.11,6.48921167]
[1734392414526,6.48921167,216.16,216.11,6.48921167]
[1734392415326,6.48921167,216.16,216.12,2.3127]
[1734392417234,2.3122,216.17,216.12,2.3127]
[1734392420543,2.3122,216.17,216.13,2.3126]
[1734392420941,11.10141167,216.18,216.13,2.3126]
[1734392421242,6.48921167,216.16,216.13,2.3126]
[1734392422143,6.48921167,216.16,216.12,2.3127]
[1734392422343,6.48921167,216.16,216.09,8.78921167]
[1734392422842,8.80161167,216.16,216.11,2.3128]
[1734392423441,8.80161167,216.16,216.12,2.3127]
[1734392424544,6.48921167,216.16,216.12,2.3127]
[1734392430646,8.80151167,216.16,216.12,2.3127]
[1734392433443,4.6122,216.18,216.13,2.3126]
[1734392433744,11.10141167,216.18,216.1,8.03041167]
[1734392434041,11.10141167,216.18,216.12,2.9973]
[1734392434356,2.3122,216.17,216.12,2.9973]
[1734392435645,2.3122,216.17,216.12,5.31]
[1734392436448,6.48921167,216.2,216.15,2.3123]
[1734392436944,6.48921167,216.18,216.14,2.3125]
[1734392437347,6.48921167,216.19,216.12,9.48651167]
[1734392437849,6.48921167,216.19,216.16,2.3122]
[1734392441349,6.48921167,216.19,216.12,9.48651167]
[1734392441547,6.48921167,216.19,216.15,2.3124]
[1734392444655,6.48921167,216.17,216.12,2.9973]
[1734392445154,6.48921167,216.15,216.12,2.9973]
[1734392446451,8.80171167,216.15,216.12,2.9973]
[1734392446659,2.3125,216.15,216.12,2.9973]
[1734392448946,2.312,216.19,216.12,2.9973]
[1734392449154,6.48921167,216.18,216.12,5.31]
[1734392449349,6.48921167,216.16,216.12,5.31]
[1734392450557,8.80151167,216.16,216.12,5.31]
[1734392451753,8.80151167,216.16,216.11,2.3128]
[1734392451956,8.80151167,216.16,216.1,6.48921167]
[1734392452350,2.3123,216.16,216.1,6.48921167]
[1734392452551,2.3122,216.17,216.12,2.3127]
[1734392453153,2.312,216.19,216.14,2.3125]
[1734392453354,6.48921167,216.19,216.12,6.48921167]
[1734392453551,6.48921167,216.19,216.09,3.0331]
[1734392453552,2.26,216.21,216.14,6.48921167]
[1734392453855,291.36357273,216.32,216.14,6.48921167]
[1734392453856,6.48921167,216.2,216.14,6.48921167]
[1734392454556,6.48921167,216.2,216.16,2.3123]
[1734392455363,8.80091167,216.22,216.17,2.3121]
[1734392457357,6.48921167,216.2,216.17,2.3121]
[1734392457862,2.26,216.23,216.13,1.5117]
[1734392458063,6.48921167,216.18,216.15,2.3123]
[1734392459362,2.26,216.23,216.13,3.8242]
[1734392459363,6.48921167,216.16,216.13,3.8242]
[1734392459564,6.48921167,216.16,216.13,2.3125]
[1734392460366,6.48921167,216.18,216.13,2.3125]
[1734392461463,8.80141167,216.18,216.13,2.3125]
[1734392462167,2.3123,216.17,216.12,2.3127]
[1734392462462,2.3123,216.17,216.1,14.28242416]
[1734392463167,6.48921167,216.16,216.12,2.3127]
[1734392463463,8.80151167,216.16,216.12,2.3127]
[1734392464367,6.48921167,216.16,216.12,2.3127]
[1734392466167,2.3122,216.17,216.12,2.3127]
[1734392467066,6.48921167,216.18,216.12,2.3127]
[1734392468065,2.3122,216.17,216.12,2.3127]
[1734392468463,6.48921167,216.16,216.12,2.3127]
[1734392470463,6.48921167,216.16,216.13,2.3126]
[1734392471272,11.06131167,216.18,216.13,2.3126]
[1734392471874,8.74921167,216.18,216.14,2.3124]
[1734392472074,8.74921167,216.2,216.12,6.48921167]
[1734392472272,6.48921167,216.2,216.12,6.48921167]
[1734392473278,8.80111167,216.2,216.15,2.3123]
[1734392473975,6.48921167,216.2,216.1,5.47795233]
[1734392474180,6.48921167,216.18,216.13,2.3126]
[1734392475871,2.3119,216.2,216.15,2.3124]
[1734392476075,6.48921167,216.19,216.15,2.3124]
[1734392476479,2.3119,216.2,216.15,8.80161167]
[1734392476780,11.28355242,216.22,216.19,6.48921167]
[1734392476979,8.74921167,216.27,216.21,6.48921167]
[1734392477274,2.3113,216.26,216.21,8.80091167]
[1734392477478,20.03506437,216.27,216.21,6.48921167]
[1734392477479,8.74921167,216.27,216.21,6.48921167]
[1734392477680,20.03467312,216.27,216.21,6.48921167]
[1734392477880,8.74921167,216.27,216.23,2.3116]
[1734392478080,37.34265145,216.28,216.21,6.48921167]
[1734392478281,37.34265145,216.28,216.23,6.48921167]
[1734392478478,37.34265145,216.28,216.26,2.3112]
[1734392479780,37.34265145,216.28,216.23,6.48921167]
[1734392479980,37.34265145,216.28,216.26,2.3112]
[1734392480885,6.48921167,216.29,216.26,2.3112]
[1734392482783,8.80041167,216.27,216.22,2.3116]
[1734392482984,6.48921167,216.25,216.22,2.3116]
[1734392484183,6.48921167,216.25,216.18,13.38701167]
[1734392484389,6.48921167,216.27,216.24,2.3115]
[1734392485692,6.48921167,216.25,216.22,2.3116]
[1734392487188,2.3113,216.26,216.22,2.3116]
[1734392487391,8.80051167,216.26,216.22,2.3116]
[1734392487989,8.80031167,216.28,216.25,2.3113]
[1734392488386,6.48921167,216.26,216.1,5.47795233]
[1734392488583,6.48921167,216.19,216.12,6.48921167]
[1734392489085,8.80121167,216.19,216.14,2.3125]
[1734392490691,6.48921167,216.19,216.14,2.3125]
[1734392492393,6.48921167,216.19,216.15,2.3124]
[1734392493289,6.48921167,216.21,216.14,6.48921167]
[1734392493488,6.48921167,216.21,216.16,2.3123]
[1734392493793,2.3118,216.22,216.14,8.74921167]
[1734392494095,8.80081167,216.23,216.17,2.3121]
[1734392494496,6.48921167,216.21,216.17,2.3121]
[1734392495389,2.3117,216.22,216.17,2.3121]
[1734392495594,8.80091167,216.22,216.17,2.3121]
[1734392497591,8.80091167,216.22,216.14,8.74921167]
[1734392497796,8.80091167,216.22,216.18,2.3121]
[1734392499397,2.3121,216.18,216.14,2.3125]
[1734392499596,2.3121,216.18,216.11,4.6635]
[1734392499597,8.80131167,216.18,216.11,4.6635]
[1734392500093,8.80131167,216.18,216.13,2.3126]
[1734392504692,6.48921167,216.18,216.12,2.3127]
[1734392504891,6.48921167,216.16,216.11,3.0748]
[1734392505795,2.3125,216.15,216.11,3.0748]
[1734392508400,2.3125,216.15,216.11,5.3876]
[1734392511202,6.48921167,216.16,216.11,5.3876]
[1734392511203,8.80161167,216.16,216.12,2.3127]
[1734392513003,2.3124,216.16,216.12,2.3127]
[1734392513304,2.3124,216.16,216.13,2.3126]
[1734392516510,8.80161167,216.16,216.13,2.3126]
[1734392519111,5.66840925,216.28,216.11,2.3127]
[1734392519313,6.48921167,216.16,216.08,3.1611]
[1734392519704,6.48921167,216.16,216.08,9.65031167]
[1734392519901,8.80161167,216.16,216.08,9.65031167]
[1734392520110,8.80161167,216.16,216.08,15.25784417]
[1734392520306,6.48921167,216.18,216.08,15.25784417]
[1734392520505,13.48924109,216.26,216.16,6.48921167]
[1734392520704,2.26,216.26,216.16,6.48921167]
[1734392521105,6.48921167,216.25,216.18,6.48921167]
[1734392521307,6.48921167,216.25,216.18,8.74921167]
[1734392522908,6.48921167,216.25,216.2,2.3119]
[1734392523110,6.48921167,216.25,216.18,8.74921167]
[1734392523613,6.48921167,216.25,216.21,2.3117]
[1734392524106,6.48921167,216.25,216.18,8.74921167]
[1734392524107,1.4813,216.38,216.27,2.311]
[1734392524407,6.48921167,216.31,216.27,2.311]
[1734392527313,6.48921167,216.3,216.27,2.311]
[1734392527714,2.3106,216.32,216.27,2.311]
[1734392527917,6.48921167,216.3,216.27,2.311]
[1734392531113,8.79981167,216.32,216.27,2.311]
[1734392531510,2.3106,216.32,216.27,2.311]
[1734392531705,8.79981167,216.32,216.27,2.311]
[1734392532411,8.79981167,216.32,216.24,8.74921167]
[1734392532616,8.79981167,216.32,216.28,2.311]
[1734392535714,2.3104,216.34,216.31,2.3107]
[1734392535919,6.48921167,216.34,216.29,2.26]
[1734392536422,6.48921167,216.34,216.31,2.3107]
[1734392536615,2.26,216.4,216.3,6.48921167]
[1734392536821,6.48921167,216.35,216.29,2.26]
[1734392537910,8.79961167,216.35,216.29,4.5708]
[1734392538117,6.48921167,216.33,216.27,3.0276]
[1734392538312,6.48921167,216.31,216.27,5.2876]
[1734392539423,6.48921167,216.31,216.27,7.5987]
[1734392542223,6.48921167,216.31,216.28,2.311]
[1734392543224,2.26,216.4,216.28,2.311]
[1734392543420,6.48921167,216.32,216.28,2.311]
[1734392543925,2.26,216.4,216.27,5.2876]
[1734392544116,6.48921167,216.32,216.29,2.3108]
[1734392544316,6.48921167,216.3,216.27,3.0276]
[1734392544516,2.26,216.4,216.27,3.0276]
[1734392545027,6.48921167,216.31,216.28,2.311]
[1734392546230,2.26,216.4,216.31,2.3107]
[1734392546419,6.48921167,216.33,216.27,9.51681167]
[1734392546621,6.48921167,216.33,216.27,3.0276]
[1734392547632,8.79971167,216.33,216.29,2.3108]
[1734392548123,2.3105,216.33,216.29,2.3108]
[1734392548323,6.48921167,216.32,216.29,2.3108]
[1734392549126,8.79971167,216.33,216.29,2.3108]
[1734392550123,2.26,216.4,216.27,9.51681167]
[1734392550329,8.79961167,216.35,216.27,9.51681167]
[1734392550737,8.79961167,216.35,216.31,2.3106]
[1734392550928,6.48921167,216.35,216.27,9.51681167]
[1734392551327,2.3102,216.36,216.31,2.3106]
[1734392551535,8.79941167,216.36,216.31,2.3106]
[1734392552134,8.79941167,216.36,216.29,6.48921167]
[1734392552434,8.79941167,216.36,216.32,2.3106]
[1734392553029,2.3103,216.35,216.32,2.3106]
[1734392554235,2.3103,216.35,216.33,2.3105]
[1734392555740,6.48921167,216.36,216.33,2.3105]
[1734392556233,6.48921167,216.36,216.34,2.3104]
[1734392559042,6.48921167,216.36,216.35,2.3103]
[1734392559236,6.48921167,216.38,216.31,6.48921167]
[1734392559645,6.48921167,216.38,216.33,2.3105]
[1734392559844,6.48921167,216.38,216.31,6.48921167]
[1734392560039,2.3099,216.39,216.31,6.48921167]
[1734392560234,6.48921167,216.37,216.31,6.48921167]
[1734392560846,6.48921167,216.37,216.32,2.3105]
[1734392561041,6.48921167,216.37,216.31,6.48921167]
[1734392561845,6.48921167,216.37,216.35,2.3102]
[1734392562141,8.79931167,216.37,216.27,3.0276]
[1734392562445,8.79931167,216.37,216.3,6.48921167]
[1734392562647,2.26,216.42,216.32,6.48921167]
[1734392562846,6.48921167,216.39,216.32,6.48921167]
[1734392563345,8.79911167,216.39,216.34,2.3104]
[1734392563846,2.3099,216.39,216.32,6.48921167]
[1734392564043,2.3098,216.4,216.37,2.31]
[1734392564241,1.4693,216.46,216.34,6.48921167]
[1734392564442,6.48921167,216.41,216.34,6.48921167]
[1734392565350,6.48921167,216.41,216.36,2.3102]
[1734392565644,6.48921167,216.41,216.34,6.48921167]
[1734392565837,6.48921167,216.41,216.33,2.26]
[1734392566040,2.3098,216.4,216.37,2.31]
[1734392566551,6.48921167,216.39,216.32,2.26]
[1734392566748,6.48921167,216.37,216.32,2.26]
[1734392566946,6.48921167,216.37,216.34,2.3103]
[1734392568154,2.31,216.38,216.34,2.3103]
[1734392572844,6.48921167,216.39,216.32,2.26]
[1734392573049,8.79941167,216.37,216.32,2.3106]
[1734392573844,2.3102,216.36,216.32,2.3106]
[1734392574550,6.48921167,216.37,216.31,5.5652181]
[1734392575452,2.3102,216.36,216.32,2.3106]
[1734392576054,2.26,216.4,216.33,6.48921167]
[1734392576248,2.31,216.38,216.33,6.48921167]
[1734392577149,2.31,216.38,216.34,2.3103]
[1734392577952,2.31,216.38,216.33,6.48921167]
[1734392578152,2.31,216.38,216.35,2.3103]
[1734392580151,6.48921167,216.4,216.35,2.3103]
[1734392580353,6.48921167,216.38,216.33,2.3105]
[1734392580647,6.48921167,216.36,216.28,8.74921167]
[1734392580844,6.48921167,216.36,216.24,4.6946]
[1734392580845,6.48921167,216.33,216.24,6.9546]
[1734392581044,6.48921167,216.31,216.25,6.48921167]
[1734392581452,6.48921167,216.31,216.25,5.65368629]
[1734392582254,2.3107,216.32,216.27,2.3111]
[1734392582553,6.48921167,216.32,216.27,2.3111]
[1734392582946,2.3109,216.3,216.26,2.3112]
[1734392583248,2.3109,216.3,216.24,3.1007]
[1734392583249,2.3109,216.3,216.24,9.58991167]
[1734392583650,2.3109,216.3,216.25,2.3113]
[1734392585052,6.48921167,216.32,216.24,9.58991167]
[1734392585253,6.48921167,216.34,216.26,6.48921167]
[1734392585652,2.3107,216.32,216.27,2.3111]
[1734392586359,2.3107,216.32,216.28,2.311]
[1734392587856,6.48921167,216.3,216.24,3.1007]
[1734392588059,6.48921167,216.28,216.21,8.74921167]
[1734392588561,2.3113,216.26,216.21,8.74921167]
[1734392588756,6.48921167,216.28,216.21,8.74921167]
[1734392589161,8.74921167,216.3,216.23,6.48921167]
[1734392589960,2.3112,216.27,216.23,8.80071167]
[1734392590857,2.311,216.28,216.25,8.80051167]
[1734392591057,2.26,216.3,216.25,6.48921167]
[1734392591859,4.5709,216.3,216.26,2.3111]
[1734392592060,2.3109,216.3,216.26,2.3111]
[1734392596169,2.3107,216.32,216.27,6.48921167]
[1734392596770,2.3107,216.32,216.28,2.3109]
[1734392597162,2.3107,216.31,216.28,2.3109]
[1734392597862,6.48921167,216.34,216.22,1.5351]
[1734392598170,2.3108,216.3,216.27,2.3111]
[1734392599166,2.3109,216.29,216.27,2.3111]
[1734392600763,2.3109,216.29,216.26,8.80041167]
[1734392600971,2.3109,216.29,216.26,2.3112]
[1734392601167,6.48921167,216.3,216.22,8.02431167]
[1734392601367,8.74921167,216.3,216.22,10.33591167]
[1734392601567,8.74921167,216.3,216.22,8.02431167]
[1734392602572,2.3112,216.27,216.22,8.02431167]
[1734392603168,2.3112,216.27,216.24,2.3114]
[1734392605472,2.3112,216.27,216.24,8.80061167]
[1734392606769,2.3112,216.27,216.24,2.3114]
[1734392607970,2.3116,216.23,216.2,2.3119]
[1734392609369,2.3116,216.23,216.19,7.97331167]
[1734392609571,2.3116,216.23,216.19,10.28531167]
[1734392610077,2.3115,216.24,216.19,7.97331167]
[1734392611378,2.3115,216.24,216.19,1.4841]
[1734392611679,2.3115,216.24,216.2,8.80101167]
[1734392612077,2.3115,216.24,216.21,2.3118]
[1734392615977,6.48921167,216.28,216.21,2.3118]
[1734392616281,8.74921167,216.3,216.22,6.48921167]
[1734392616681,6.48921167,216.3,216.22,6.48921167]
[1734392616881,2.3112,216.27,216.21,1.6144]
[1734392617078,2.3112,216.27,216.21,8.10361167]
[1734392617584,2.3112,216.27,216.23,2.3115]
[1734392617876,6.48921167,216.26,216.19,1.4841]
[1734392618079,2.3117,216.23,216.2,2.3119]
[1734392620173,6.48921167,216.26,216.19,6.48921167]
[1734392620374,2.3114,216.25,216.22,2.3117]
[1734392622984,2.3115,216.24,216.21,2.3118]
[1734392623185,6.48921167,216.26,216.19,6.48921167]
[1734392623885,2.3117,216.23,216.2,2.3119]
[1734392625584,2.3119,216.21,216.16,2.3123]
[1734392625780,6.48921167,216.24,216.16,6.48921167]
[1734392625985,2.26,216.27,216.14,2.26]
[1734392625986,6.48921167,216.22,216.14,6.48921167]
[1734392626182,8.74921167,216.22,216.14,6.48921167]
[1734392626986,2.3121,216.19,216.15,2.3124]
[1734392627887,6.48921167,216.2,216.05,2.26]
[1734392628086,6.48921167,216.18,216.1,6.48921167]
[1734392628280,2.26,216.17,216.1,6.48921167]
[1734392629298,2.3126,216.14,216.1,8.80211167]
[1734392630094,2.3126,216.14,216.1,2.3129]
[1734392630294,2.3126,216.14,216.1,8.80211167]
[1734392631485,2.3126,216.14,216.11,2.3128]
[1734392631900,2.3126,216.14,216.1,8.80211167]
[1734392632095,6.48921167,216.16,216.1,8.80211167]
[1734392632297,2.3127,216.13,216.1,8.80211167]
[1734392632897,6.48921167,216.14,216.06,4.5208]
[1734392633099,2.3129,216.11,216.08,2.3132]
[1734392636503,2.3127,216.13,216.08,2.3132]
[1734392636695,2.3127,216.13,216.09,6.48921167]
[1734392636896,6.48921167,216.14,216.09,6.48921167]
[1734392637607,2.3127,216.13,216.09,8.80221167]
[1734392637901,8.74921167,216.16,216.09,6.48921167]
[1734392638205,8.74921167,216.16,216.11,6.48921167]
[1734392638406,2.3125,216.15,216.11,8.80201167]
[1734392640109,2.3125,216.15,216.11,2.3128]
[1734392642011,2.3125,216.14,216.11,2.3128]
[1734392643409,2.3125,216.14,216.09,6.48921167]
[1734392644412,2.3125,216.14,216.11,2.3128]
[1734392645909,2.3126,216.14,216.1,2.3129]
[1734392646909,8.74921167,216.16,216.11,2.3128]
[1734392647110,11.06151167,216.16,216.11,2.3128]
[1734392647510,11.06151167,216.16,216.12,2.3127]
[1734392648412,11.06131167,216.19,216.15,2.3124]
[1734392648612,1.5269,216.32,216.13,6.48921167]
[1734392648807,6.48921167,216.19,216.13,6.48921167]
[1734392649208,2.26,216.2,216.16,2.3122]
[1734392649510,6.48921167,216.22,216.17,6.48921167]
[1734392649710,6.48921167,216.22,216.19,2.3119]
[1734392650008,2.26,216.23,216.19,2.3119]
[1734392650211,2.26,216.23,216.17,6.48921167]
[1734392650409,5.6083834,216.25,216.19,6.48921167]
[1734392650611,6.48921167,216.26,216.19,6.48921167]
[1734392651108,4.5712,216.27,216.21,2.3117]
[1734392651315,6.48921167,216.26,216.19,6.48921167]
[1734392651515,4.5712,216.27,216.19,6.48921167]
[1734392651715,6.48921167,216.26,216.19,6.48921167]
[1734392652013,8.80041167,216.26,216.21,2.3118]
[1734392652212,2.3112,216.26,216.21,2.3118]
[1734392652415,6.48921167,216.25,216.21,2.3118]
[1734392652917,6.48921167,216.25,216.21,2.3117]
[1734392653215,6.48921167,216.25,216.18,6.48921167]
[1734392653414,6.48921167,216.25,216.2,2.3119]
[1734392653713,6.48921167,216.25,216.18,6.48921167]
[1734392654109,2.26,216.27,216.18,6.48921167]
[1734392654309,2.26,216.27,216.23,2.3116]
[1734392654310,6.48921167,216.26,216.23,2.3116]
[1734392654516,6.48921167,216.29,216.22,6.48921167]
[1734392654811,6.48921167,216.29,216.25,2.3113]
[1734392657819,6.48921167,216.27,216.18,7.78395191]
[1734392658017,6.48921167,216.27,216.22,2.3116]
[1734392658018,6.48921167,216.25,216.22,2.3116]
[1734392660821,6.48921167,216.25,216.19,6.48921167]
[1734392661020,6.48921167,216.25,216.2,2.3118]
[1734392661621,8.80061167,216.25,216.2,2.3118]
[1734392663021,2.3115,216.24,216.19,8.80121167]
[1734392664419,6.48921167,216.25,216.19,8.80121167]
[1734392664717,8.80061167,216.25,216.19,8.80121167]
[1734392665021,2.3114,216.25,216.19,8.80121167]
[1734392665518,2.3113,216.26,216.21,2.3117]
[1734392665723,6.48921167,216.27,216.19,6.48921167]
[1734392666120,6.48921167,216.27,216.16,7.77805534]
[1734392666121,6.48921167,216.27,216.16,5.51805534]
[1734392666320,6.48921167,216.27,216.2,6.48921167]
[1734392666915,2.3113,216.26,216.22,2.3116]
[1734392672327,4.5711,216.27,216.24,2.3114]
[1734392672825,2.26,216.27,216.17,2.26]
[1734392673121,6.48921167,216.26,216.18,6.48921167]
[1734392673329,2.26,216.27,216.18,6.48921167]
[1734392673618,6.48921167,216.25,216.19,2.3119]
[1734392673820,6.48921167,216.25,216.18,6.48921167]
[1734392673821,6.48921167,216.2,216.15,1.6211]
[1734392674022,5.63709458,216.29,216.14,1.6275]
[1734392674023,6.48921167,216.18,216.14,1.6275]
[1734392675317,2.3123,216.16,216.07,2.26]
[1734392675620,6.48921167,216.16,216.08,7.16115057]
[1734392675825,2.3127,216.13,216.08,3.8384]
[1734392676022,2.3127,216.13,216.08,10.32761167]
[1734392677022,8.80161167,216.15,216.08,10.32761167]
[1734392677827,6.48921167,216.15,216.08,10.32761167]
[1734392678027,2.3125,216.14,216.08,10.32761167]
[1734392678629,8.80161167,216.15,216.08,8.01451167]
[1734392678832,8.80161167,216.15,216.09,2.313]
[1734392680923,2.3126,216.14,216.09,2.313]
[1734392681123,4.5726,216.14,216.09,2.313]
[1734392681930,4.5726,216.14,216.08,10.32761167]
[1734392682137,4.5726,216.14,216.08,8.01451167]
[1734392683032,2.26,216.16,216.12,2.3127]
[1734392683838,2.26,216.16,216.13,2.3126]
[1734392684034,2.26,216.16,216.12,6.48921167]
[1734392684235,2.26,216.18,216.12,6.48921167]
[1734392685037,6.48921167,216.19,216.12,6.48921167]
[1734392685331,2.26,216.18,216.12,6.48921167]